fUST/lending_fUST_20250226
["ID","MTS","AMOUNT","RATE_DAILY","PERIOD"]
[354537698,1740559691337,-1850.0,0.00048,42]
[354537699,1740559691370,-1850.0,0.00048,42]
[354537700,1740559691401,-1850.0,0.00048,42]
[354537701,1740559691433,-1850.0,0.00048,42]
[354537702,1740559691464,-1850.0,0.00048,42]
[354537703,1740559691499,-1850.0,0.00048,42]
[354537704,1740559691527,-221.0791,0.00049093,30]
[354537705,1740559691553,-500.0,0.00049315,120]
[354537706,1740559691581,-1999.0,0.00049863,120]
[354537707,1740559691607,-302.0,0.00050462,30]
[354537708,1740559691636,-179.64071856,0.00050521,42]
[354537709,1740559691663,-356.8270087,0.00050816,30]
[354537710,1740559691690,-355.4786638,0.00050816,30]
[354537711,1740559691719,-557.5803526,0.00050953,30]
[354537712,1740559691744,-363.6520511,0.00050953,30]
[354537713,1740559691770,-557.5803526,0.00050953,30]
[354537714,1740559691795,-500.00667063,0.00051171,10]
[354537715,1740559691820,-900.0719195,0.00051171,10]
[354537716,1740559691845,-153.0,0.00051227,30]
[354537717,1740559691871,-153.0,0.00051227,30]
[354537718,1740559691898,-2200.0,0.00051743,30]
[354537719,1740559691925,-557.5803526,0.00051745,30]
[354537720,1740559691951,-557.5803526,0.00051745,30]
[354537721,1740559691978,-519.3718139,0.00051745,30]
[354537722,1740559692005,-500.0,0.00051774,120]
[354537723,1740559692033,-355.4786638,0.00051775,30]
[354537724,1740559692058,-153.0,0.00051775,30]
[354537725,1740559692083,-355.4786638,0.00051775,30]
[354537726,1740559692111,-557.5803526,0.00051775,30]
[354537727,1740559692144,-557.5803526,0.00051775,30]
[354537728,1740559692170,-557.5803526,0.00051775,30]
[354537729,1740559692195,-19603.87691479,0.00051775,30]
[354537730,1740559692222,-500.0,0.00052054,2]
[354537731,1740559692247,-3856.37,0.000521,30]
[354537732,1740559692273,-500.0,0.00052673,10]
[354537733,1740559692298,-500.0,0.00052689,2]
[354537734,1740559692326,-500.0,0.00052689,120]
[354537735,1740559692355,-500.0,0.00052689,120]
[354537736,1740559692382,-500.0,0.00052689,2]
[354537737,1740559692409,-500.0,0.00052689,120]
[354537738,1740559692437,-500.0,0.00052689,120]
[354537739,1740559692463,-500.0,0.00052689,2]
[354537740,1740559692491,-500.0,0.00052689,120]
[354537741,1740559692518,-263.09411988,0.00052689,120]
[354537742,1740559692548,-175.28605709,0.00052689,120]
[354537743,1740559692575,-500.0,0.00052689,2]
[354537744,1740559692601,-500.0,0.00052689,120]
[354537745,1740559692631,-435.25368808,0.00052689,2]
[354537746,1740559692658,-500.0,0.00052689,120]
[354537747,1740559692688,-295.96227245,0.00052689,120]
[354537748,1740559692716,-1143.0,0.0005269,120]
[354537749,1740559692741,-1143.0,0.0005269,120]
[354537750,1740559692766,-1143.0,0.0005269,120]
[354537751,1740559692790,-1143.0,0.0005269,120]
[354537752,1740559692816,-19603.87691479,0.0005269,120]
[354537753,1740559692841,-1500.0,0.00053006,10]
[354537754,1740559692866,-1500.0,0.00053371,7]
[354537755,1740559692891,-183.42,0.000538,7]
[354537756,1740559692917,-171.97157311,0.00053991,29]
[354537757,1740559692941,-500.0,0.00053991,29]
[354537758,1740559692968,-500.0,0.00054245,120]
[354537759,1740559692995,-500.0,0.00054794,2]
[354537760,1740559693033,-3000.0,0.00054955,120]
[354537761,1740559693060,-1000.0,0.00058152,15]
[354537762,1740559693087,-1143.0,0.0005869,120]
[354537763,1740559693113,-185.09811592,0.00062913,2]
[354537764,1740559693141,-500.0,0.00063012,120]
[354537765,1740559693170,-1243.0,0.0006369,120]
[354537766,1740559693198,-1143.0,0.0006369,120]
[354537767,1740559693225,-1143.0,0.0006369,120]
[354537768,1740559693252,-2000.0,0.00065979,15]
[354537769,1740559693282,-500.0,0.00066334,120]
[354537770,1740559693321,-2000.0,0.00066345,7]
[354537771,1740559693347,-250.0,0.00066849,120]
[354537772,1740559693369,-500.0,0.00067171,15]
[354537773,1740559693391,-500.0,0.00067171,14]
[354537774,1740559693417,-500.0,0.00067396,120]
[354537775,1740559693443,-277.98,0.000675,14]
[354537776,1740559693471,-716.01227317,0.00068171,15]
[354537777,1740559693504,-500.0,0.00068492,120]
[354537778,1740559693534,-500.0,0.00068492,120]
[354537779,1740559693562,-500.0,0.00068493,120]
[354537780,1740559693589,-500.0,0.00068493,120]
[354537781,1740559693616,-500.0,0.00068493,120]
[354537782,1740559693645,-500.0,0.00068493,120]
[354537783,1740559693671,-500.0,0.00068493,120]
[354537784,1740559693697,-500.0,0.00068493,120]
[354537785,1740559693725,-500.0,0.00068493,120]
[354537786,1740559693752,-500.0,0.00068493,120]
[354537787,1740559693778,-605.18783642,0.00068493,120]
[354537788,1740559693803,-500.0,0.00068493,120]
[354537789,1740559693828,-500.0,0.00068493,120]
[354537790,1740559693853,-500.0,0.00068493,120]
[354537791,1740559693878,-500.0,0.00068493,120]
[354537792,1740559693903,-500.0,0.00068493,120]
[354537793,1740559693928,-500.0,0.00068493,120]
[354537794,1740559693955,-500.0,0.00068493,120]
[354537795,1740559693983,-500.0,0.00068493,120]
[354537796,1740559694010,-500.0,0.00068493,120]
[354537797,1740559694036,-500.0,0.00068493,120]
[354537798,1740559694062,-500.0,0.00068493,120]
[354537799,1740559694089,-500.0,0.00068493,120]
[354537800,1740559694116,-500.0,0.00068493,120]
[354537801,1740559694145,-500.0,0.00068493,120]
[354537802,1740559694172,-500.0,0.00068493,120]
[354537803,1740559694199,-500.0,0.00068493,120]
[354537804,1740559694226,-500.0,0.00068493,120]
[354537805,1740559694253,-500.0,0.00068493,120]
[354537806,1740559694279,-500.0,0.00068493,120]
[354537807,1740559694305,-500.0,0.00068493,120]
[354537808,1740559694331,-500.0,0.00068493,120]
[354537809,1740559694357,-500.0,0.00068493,120]
[354537810,1740559694383,-500.0,0.00068493,120]
[354537811,1740559694409,-500.0,0.00068493,120]
[354537812,1740559694436,-500.0,0.00068493,120]
[354537813,1740559694462,-500.0,0.00068493,120]
[354537814,1740559694489,-500.0,0.00068493,120]
[354537815,1740559694514,-500.0,0.00068493,120]
[354537816,1740559694538,-500.0,0.00068493,120]
[354537817,1740559694563,-500.0,0.00068493,120]
[354537818,1740559694588,-500.0,0.00068493,120]
[354537819,1740559694614,-250.0,0.00068493,120]
[354537820,1740559694644,-7065.23,0.00068493,10]
[354537821,1740559694670,-5887.69,0.00068493,10]
[354537822,1740559694696,-4906.41,0.00068493,10]
[354537823,1740559694722,-1143.0,0.0006869,120]
[354537824,1740559694750,-500.0,0.00069999,120]
[354537825,1740559694776,-20000.0,0.0007,60]
[354537826,1740559694802,-500.0,0.0007064,15]
[354537827,1740559694828,-505.34017301,0.0007064,15]
[354537828,1740559694853,-250.0,0.00070958,120]
[354537829,1740559694878,-3856.37,0.00071,30]
[354537830,1740559694904,-1000.0,0.00072651,14]
[354537831,1740559694936,-400.0,0.00074,120]
[354537832,1740559694967,-185.09811591,0.0007441,2]
[354537833,1740559694999,-500.0,0.00074999,120]
[354537834,1740559695028,-20000.0,0.00075,60]
[354537835,1740559695058,-179.64071856,0.00075782,60]
[354537836,1740559695087,-1000.0,0.00076119,15]
[354537837,1740559695115,-2500.0,0.00081343,15]
[354537838,1740559695142,-480.0,0.00081388,120]
[354537839,1740559695171,-1261.99281236,0.00081708,7]
[354537840,1740559695200,-3228.50717337,0.00082,120]
[354537841,1740559695230,-19603.87691479,0.00082,7]
[354537842,1740559695262,-1500.0,0.0008267,14]
[354537843,1740559695292,-156.56,0.00083391,120]
[354537844,1740559695321,-10000.0,0.00085,120]
[354537845,1740559695350,-185.09811591,0.00085907,2]
[354537846,1740559695380,-1500.0,0.00086138,60]
[354537847,1740559695411,-1391.0,0.0008798,120]
[354537848,1740559695441,-300.0,0.0009,120]
[354537849,1740559695473,-10000.0,0.0009,120]
[354537850,1740559695505,-2000.0,0.00095643,14]
[354537851,1740559695536,-153.0,0.0009589,120]
[354537852,1740559695567,-151.0,0.00096,120]
[354537853,1740559695597,-185.09811591,0.00097403,2]
[354537854,1740559695628,-257.448102,0.00097999,120]
[354537855,1740559695659,-3000.0,0.00098769,30]
[354537856,1740559695689,-3856.37,0.000988,60]
[354537857,1740559695723,-1000.0,0.00099,120]
[354537858,1740559695754,-2000.0,0.00099112,60]
[354537859,1740559695783,-3000.0,0.000998,120]
[354537860,1740559695813,-65949.40351636,0.000998,120]
[354537861,1740559695842,-2000.0,0.000999,120]
[354537862,1740559695872,-39401.62304746,0.000999,120]
[354537863,1740559695903,-264.18523532,0.0009999,14]
[354537864,1740559695932,-505.22044583,0.00099999,120]
[354537865,1740559695962,-505218.15410342,0.001,120]
[354537866,1740559695989,-1133.11889442,0.001,120]
[354537867,1740559696016,-6000.0,0.001,120]
[354537868,1740559696475,-300.0,0.001,120]
[354537869,1740559696506,-1000.0,0.001,120]
[354537870,1740559696533,-1000.0,0.001,120]
[354537871,1740559696560,-1000.0,0.001,120]
[354537872,1740559696587,-20000.0,0.001,120]
[354537873,1740559696615,-20000.0,0.001,120]
[354537874,1740559696647,-20000.0,0.001,120]
[354537875,1740559696675,-20000.0,0.001,120]
[354537876,1740559696702,-20000.0,0.001,120]
[354537877,1740559696730,-33000.0,0.001,120]
[354537878,1740559696760,-2011.0,0.001,30]
[354537879,1740559696788,-665.44243628,0.001,30]
[354537880,1740559696817,-151.0,0.001,120]
[354537881,1740559696845,-500.0,0.0010063,120]
[354537882,1740559696871,-700.0,0.001009,120]
[354537883,1740559696897,-500.0,0.00104739,120]
[354537884,1740559696923,-947.24,0.00107,60]
[354537885,1740559696949,-500.0,0.00108849,120]
[354537886,1740559696979,-2909.39254587,0.001089,2]
[354537887,1740559697014,-185.09811591,0.001089,120]
[354537888,1740559697043,-112503.5887332,0.00109,30]
[354537889,1740559697071,-825391.46358354,0.00109,30]
[354537890,1740559697098,-159.86,0.00109,60]
[354537891,1740559697125,-500.0,0.00109589,120]
[354537892,1740559697151,-733.59231124,0.0011,120]
[354537893,1740559702194,-500.0,0.00035616,2]
[354537894,1740559702222,-500.0,0.00035616,2]
[354537895,1740559702252,-503.75950581,0.00035673,5]
[354537896,1740559702282,-1999.0,0.00054246,120]
[354537897,1740559702309,-1999.0,0.0005863,120]
[354537898,1740559702335,-1999.0,0.00063013,120]
[354537899,1740559702361,-1999.0,0.00067397,120]
[354537900,1740559702387,-500.0,0.0006914,15]
[354537901,1740559702413,-1999.0,0.0007178,120]
[354537902,1740559702439,-1000.0,0.00074619,15]
[354537903,1740559702466,-1999.0,0.00076164,120]
[354537904,1740559702494,-1999.0,0.00080547,120]
[354537905,1740559702519,-1500.0,0.00084638,60]
[354537906,1740559702546,-1999.0,0.00084931,120]
[354537907,1740559702573,-1999.0,0.00089315,120]
[354537908,1740559702599,-1999.0,0.00093698,120]
[354537909,1740559702630,-1019.79385563,0.00097612,60]
[354537910,1740559702657,-1999.0,0.00098082,120]
[354537911,1740559702683,-322.31659798,0.00102465,120]
[354537912,1740559702708,-266.40768876,0.0011,120]
[354537913,1740559702732,-1000.0,0.0011,120]
[354537914,1740559702759,-1000.0,0.0011,120]
[354537915,1740559702784,-2200.0,0.0011,120]
[354537960,1740559832060,-500.0,0.00035616,2]
[354537962,1740559832070,-500.0,0.00035616,2]
[354537963,1740559832079,-502.68226274,0.00035616,2]
[354537966,1740559832090,-189.51089618,0.00035616,2]
[354537968,1740559832100,-500.0,0.00035616,2]
[354537970,1740559832109,-500.0,0.00035616,2]
[354537972,1740559832120,-500.0,0.00035616,2]
[354537974,1740559832130,-309.87324916,0.00035616,2]
[354537976,1740559832140,-500.0,0.00035616,2]
[354537978,1740559832150,-500.0,0.00035616,2]
[354537980,1740559832161,-197.970513,0.00035616,2]
[354537982,1740559832171,-501.3743654,0.00035616,2]
[354537984,1740559832181,-638.99577081,0.00035616,2]
[354537986,1740559832190,-343.77,0.0003589,2]
[354537988,1740559832200,-444.41355616,0.0003589,2]
[354537990,1740559832210,-520.89831625,0.00038345,2]
[354537993,1740559832222,-502.60066028,0.00038345,2]
[354537996,1740559832231,-500.0,0.00038345,2]
[354537999,1740559832240,-500.0,0.00038356,50]
[354538002,1740559832251,-404.3346125,0.00043025,35]
[354538005,1740559832261,-151.0,0.00043617,30]
[354538008,1740559832271,-166.1,0.00044986,30]
[354538012,1740559832280,-182.71,0.00046355,30]
[354538015,1740559832289,-200.981,0.00047724,30]
[354538018,1740559832298,-221.0791,0.00049093,30]
[354538021,1740559832307,-302.0,0.00050462,30]
[354538024,1740559832316,-14930.06919807,0.00051675,120]
[354538027,1740559832325,-500.0,0.00059472,58]
[354538030,1740559832334,-39401.62304746,0.00070858,120]
[354538032,1740559832344,-480.0,0.0008687,120]
[354538036,1740559832354,-196540.0,0.00095,120]
[354538038,1740559832363,-200000.0,0.00096,120]
[354538039,1740559832372,-86850.63258331,0.00097,120]
[354538042,1740559832388,-535.36259786,0.00097,120]
[354538115,1740559837794,-714.23435635,0.00097,120]
[354538116,1740559838117,-84088.8594696,0.00097,120]
[354538117,1740559838131,-1224.23942699,0.00097,120]
[354538122,1740559840028,-26586.67156589,0.00097,120]
[354538123,1740559840037,-1243.0,0.00097489,120]
[354538124,1740559840047,-161.49461176,0.0009791,28]
[354538125,1740559840057,-637.8901523,0.00098,120]
[354538223,1740559858919,-82986.1595996,0.00098,120]
[354538224,1740560798132,-388.73303571,0.00035174,2]
[354538225,1740560866941,-175.04871459,0.00035174,2]
[354538226,1740560866962,-697.06852769,0.00035516,2]
[354538227,1740560866982,-300.0,0.00035615,2]
[354538228,1740560867002,-1626.04209265,0.00035616,2]
[354538229,1740560867023,-500.0,0.00035616,2]
[354538230,1740560867048,-500.84622981,0.00035616,2]
[354538231,1740560867069,-342.87776324,0.00035616,2]
[354538232,1740560867092,-500.0,0.00035616,2]
[354538233,1740560867111,-500.0,0.00035616,2]
[354538234,1740560867132,-500.0,0.00035616,2]
[354538235,1740560867152,-500.0,0.00035616,2]
[354538236,1740560867172,-501.61087686,0.00035616,2]
[354538237,1740560867193,-500.0,0.00035616,2]
[354538238,1740560867216,-500.0,0.00035616,2]
[354538239,1740560867236,-500.0,0.00035616,2]
[354538240,1740560867256,-500.0,0.00035616,2]
[354538241,1740560867276,-500.0,0.00035616,2]
[354538242,1740560867296,-500.0,0.00035616,2]
[354538243,1740560867316,-259.71915706,0.00035616,2]
[354538244,1740560867336,-500.0,0.00035616,2]
[354538245,1740560867357,-500.0,0.00035616,2]
[354538246,1740560867377,-500.0,0.00035616,2]
[354538247,1740560867398,-500.0,0.00035616,2]
[354538248,1740560867419,-500.0,0.00035616,2]
[354538249,1740560867441,-630.09995008,0.00035616,2]
[354538250,1740560867462,-500.0,0.00035616,2]
[354538251,1740560867482,-500.0,0.00035616,2]
[354538252,1740560867504,-500.0,0.00035616,2]
[354538253,1740560867525,-500.0,0.00035616,2]
[354538254,1740560867545,-440.14248299,0.00035616,2]
[354538255,1740560867566,-500.0,0.00035616,2]
[354538256,1740560867587,-500.17336142,0.00035616,2]
[354538257,1740560867607,-500.0,0.00035616,2]
[354538258,1740560867628,-508.16623147,0.00035616,2]
[354538259,1740560867648,-461.49036088,0.00035616,2]
[354538260,1740560867668,-500.0,0.00035616,2]
[354538261,1740560867688,-500.0,0.00035616,2]
[354538262,1740560867709,-500.53823089,0.00035616,2]
[354538263,1740560867729,-500.0,0.00035616,2]
[354538264,1740560867750,-56.17602037,0.00035616,2]
[354538304,1740561032160,-253.66253445,0.00035994,2]
[354538310,1740561032214,-205.70867705,0.00035994,2]
[354538312,1740561032224,-500.0,0.00038356,50]
[354538314,1740561032233,-500.0,0.0003863,55]
[354538316,1740561032243,-500.0,0.00038904,60]
[354538318,1740561032252,-500.0,0.00039178,65]
[354538320,1740561032261,-500.0,0.00039843,5]
[354538322,1740561032271,-500.0,0.00040863,5]
[354538324,1740561032280,-505.16010687,0.00040863,5]
[354538326,1740561032290,-500.60642967,0.00040863,5]
[354538328,1740561032299,-14165.1997223,0.00041723,2]
[354538331,1740561032313,-300.0,0.00045,5]
[354538333,1740561032323,-151.0,0.00045,120]
[354538335,1740561032332,-151.0,0.00046329,120]
[354538337,1740561032341,-228.41,0.000466,2]
[354538339,1740561032350,-396.0,0.00046617,2]
[354538341,1740561032360,-151.0,0.00047644,120]
[354538343,1740561032370,-1635.98,0.00048,42]
[354538345,1740561032378,-1635.98,0.00048,42]
[354538347,1740561032388,-1635.98,0.00048,42]
[354538349,1740561032397,-1635.98,0.00048,42]
[354538351,1740561032406,-1635.98,0.00048,42]
[354538354,1740561032416,-1635.98,0.00048,42]
[354538357,1740561032425,-1635.98,0.00048,42]
[354538360,1740561032434,-1635.98,0.00048,42]
[354538362,1740561032443,-1635.98,0.00048,42]
[354538364,1740561032453,-1635.98,0.00048,42]
[354538366,1740561032462,-1635.98,0.00048,42]
[354538369,1740561032471,-1635.98,0.00048,42]
[354538372,1740561032481,-151.0,0.00048959,120]
[354538374,1740561032491,-396.0,0.00049617,2]
[354538376,1740561032500,-151.0,0.00050274,120]
[354538378,1740561032510,-355.4786638,0.00051381,30]
[354538380,1740561032519,-355.4786638,0.00051381,30]
[354538382,1740561032529,-355.4786638,0.00051381,30]
[354538384,1740561032539,-355.4786638,0.00051381,30]
[354538386,1740561032548,-355.4786638,0.00051381,30]
[354538389,1740561032558,-523.6468345,0.00051381,30]
[354538391,1740561032568,-1113.7010938,0.00051518,30]
[354538393,1740561032578,-557.5803526,0.00051518,30]
[354538395,1740561032587,-557.5803526,0.00051518,30]
[354538397,1740561032597,-557.5803526,0.00051518,30]
[354538399,1740561032607,-557.5803526,0.00051518,30]
[354538401,1740561032616,-557.5803526,0.00051518,30]
[354538403,1740561032626,-1113.1573143,0.00051518,30]
[354538405,1740561032635,-151.0,0.00051589,120]
[354538407,1740561032644,-200.3412809,0.00051792,30]
[354538409,1740561032654,-2200.0,0.0005188,30]
[354538411,1740561032663,-179.64071856,0.00051961,44]
[354538413,1740561032673,-321.984,0.00052617,120]
[354538415,1740561032683,-151.0,0.00052904,120]
[354538417,1740561032693,-151.0,0.00054219,120]
[354538419,1740561032702,-685.24,0.00055,7]
[354538421,1740561032712,-151.0,0.00055534,120]
[354538423,1740561032721,-151.0,0.00056849,120]
[354538425,1740561032731,-151.0,0.00058164,120]
[354538427,1740561032740,-417.18,0.00059321,30]
[354538430,1740561032750,-151.0,0.00059479,120]
[354538432,1740561032761,-151.0,0.00060795,120]
[354538434,1740561032771,-151.0,0.0006211,120]
[354538436,1740561032780,-151.0,0.00063425,120]
[354538438,1740561032790,-151.0,0.0006474,120]
[354538440,1740561032800,-16717.28351919,0.00066,120]
[354538442,1740561032811,-151.0,0.00066055,120]
[354538444,1740561032821,-586.65,0.00066849,120]
[354538446,1740561032831,-151.0,0.0006737,120]
[354538448,1740561032840,-22420.26889794,0.00068,120]
[354538450,1740561032850,-151.0,0.00068685,120]
[354538452,1740561032861,-2205.55902209,0.000688,110]
[354538454,1740561032871,-571.03,0.00069,14]
[354538457,1740561032881,-1000.0,0.000698,30]
[354538459,1740561032891,-2785.05795312,0.0006999,5]
[354538461,1740561032900,-500.0,0.00069999,31]
[354538463,1740561032910,-500.0,0.00069999,120]
[354538465,1740561032919,-500.0,0.00069999,120]
[354538467,1740561032928,-194.76228565,0.00069999,120]
[354538469,1740561032937,-500.0,0.00069999,2]
[354538471,1740561032947,-500.0,0.00069999,120]
[354538473,1740561032957,-500.0,0.00069999,120]
[354538475,1740561032974,-500.0,0.00069999,120]
[354538477,1740561032985,-500.0,0.00069999,120]
[354538479,1740561032994,-500.0,0.00069999,120]
[354538481,1740561033006,-500.0,0.00069999,31]
[354538483,1740561033015,-500.0,0.00069999,120]
[354538485,1740561033027,-500.0,0.00069999,120]
[354538487,1740561033038,-500.0,0.00069999,120]
[354538489,1740561033049,-500.0,0.00069999,2]
[354538491,1740561033060,-500.0,0.00069999,120]
[354538493,1740561033071,-500.0,0.00069999,120]
[354538495,1740561033082,-500.0,0.00069999,120]
[354538498,1740561033097,-430.13954733,0.00069999,120]
[354538500,1740561033109,-500.0,0.00069999,120]
[354538502,1740561033119,-432.45885579,0.00069999,120]
[354538504,1740561033131,-500.0,0.00069999,2]
[354538506,1740561033142,-347.18451738,0.00069999,31]
[354538507,1740561033152,-500.0,0.00069999,120]
[354538510,1740561033164,-500.0,0.00069999,120]
[354538511,1740561033175,-500.0,0.00069999,2]
[354538514,1740561033186,-500.0,0.00069999,120]
[354538516,1740561033196,-500.0,0.00069999,120]
[354538518,1740561033206,-500.0,0.00069999,120]
[354538520,1740561033218,-500.0,0.00069999,120]
[354538522,1740561033228,-500.0,0.00069999,2]
[354538524,1740561033239,-500.0,0.00069999,120]
[354538526,1740561033250,-500.0,0.00069999,120]
[354538528,1740561033260,-500.0,0.00069999,120]
[354538530,1740561033271,-500.0,0.00069999,120]
[354538531,1740561033281,-500.0,0.00069999,2]
[354538533,1740561033291,-500.0,0.00069999,120]
[354538535,1740561033302,-500.0,0.00069999,120]
[354538537,1740561033312,-500.0,0.00069999,120]
[354538539,1740561033322,-500.0,0.00069999,120]
[354538540,1740561033332,-500.0,0.00069999,120]
[354538541,1740561033342,-500.0,0.00069999,2]
[354538543,1740561033352,-500.0,0.00069999,120]
[354538545,1740561033365,-500.0,0.00069999,120]
[354538546,1740561033376,-556.93451423,0.00069999,2]
[354538547,1740561033386,-500.0,0.00069999,120]
[354538548,1740561033396,-500.0,0.00069999,120]
[354538549,1740561033407,-500.0,0.00069999,120]
[354538550,1740561033418,-500.0,0.00069999,120]
[354538551,1740561033430,-500.0,0.00069999,120]
[354538552,1740561033441,-500.0,0.00069999,120]
[354538553,1740561033452,-500.0,0.00069999,120]
[354538554,1740561033463,-500.0,0.00069999,120]
[354538555,1740561033473,-174.51878364,0.00069999,120]
[354538556,1740561033485,-586.40760584,0.00069999,120]
[354538557,1740561033496,-500.0,0.00069999,120]
[354538558,1740561033507,-500.0,0.00069999,120]
[354538559,1740561033518,-500.0,0.00069999,120]
[354538560,1740561033529,-500.0,0.00069999,120]
[354538561,1740561033539,-500.0,0.00069999,120]
[354538562,1740561033550,-500.0,0.00069999,120]
[354538563,1740561033560,-500.0,0.00069999,120]
[354538564,1740561033570,-500.0,0.00069999,120]
[354538565,1740561033581,-500.0,0.00069999,120]
[354538566,1740561033591,-500.0,0.00069999,120]
[354538567,1740561033601,-500.0,0.00069999,120]
[354538568,1740561033615,-500.0,0.00069999,120]
[354538569,1740561033625,-500.0,0.00069999,120]
[354538570,1740561033635,-500.0,0.00069999,120]
[354538571,1740561033645,-500.0,0.00069999,120]
[354538572,1740561033655,-500.0,0.00069999,120]
[354538573,1740561033665,-500.0,0.00069999,120]
[354538574,1740561033675,-500.0,0.00069999,120]
[354538575,1740561033684,-500.0,0.00069999,120]
[354538576,1740561033695,-500.0,0.00069999,120]
[354538577,1740561033705,-500.0,0.00069999,120]
[354538578,1740561033715,-468.63135474,0.00069999,120]
[354538579,1740561033724,-500.0,0.00069999,120]
[354538580,1740561033734,-500.0,0.00069999,120]
[354538581,1740561033744,-500.0,0.00069999,120]
[354538582,1740561033754,-500.0,0.00069999,120]
[354538583,1740561033764,-500.0,0.00069999,120]
[354538584,1740561033774,-500.0,0.00069999,120]
[354538585,1740561033783,-500.0,0.00069999,120]
[354538586,1740561033793,-611.0,0.00069999,120]
[354538587,1740561033803,-151.0,0.0007,120]
[354538588,1740561033813,-28125.8971833,0.0007,30]
[354538589,1740561033823,-206347.86589589,0.0007,30]
[354538590,1740561033833,-206347.86589589,0.0007,30]
[354538591,1740561033843,-461.79,0.0007,60]
[354538592,1740561033852,-8339.4,0.0007,30]
[354538593,1740561033862,-586.65,0.00070958,120]
[354538594,1740561033872,-151.0,0.000711,43]
[354538595,1740561033882,-151.0,0.00071315,120]
[354538596,1740561033892,-151.0,0.0007263,120]
[354538597,1740561033901,-151.0,0.000732,38]
[354538598,1740561033911,-151.0,0.00073945,120]
[354538599,1740561033921,-586.65,0.00075068,120]
[354538600,1740561033930,-151.0,0.0007526,120]
[354538601,1740561033940,-151.0,0.000753,36]
[354538602,1740561033949,-500.0,0.00076153,15]
[354538603,1740561033959,-158.67350115,0.00076153,15]
[354538604,1740561033968,-160.1779098,0.00076153,15]
[354538605,1740561033978,-395.37437627,0.00076192,15]
[354538606,1740561033987,-259.74698992,0.00076192,15]
[354538607,1740561033997,-151.0,0.00076575,120]
[354538608,1740561034007,-151.0,0.000774,32]
[354538609,1740561034016,-151.0,0.0007789,120]
[354538610,1740561034026,-179.64071856,0.00077942,60]
[354538611,1740561034036,-28125.8971833,0.00078322,30]
[354538612,1740561034046,-586.65,0.00079178,120]
[354538613,1740561034056,-8339.4,0.000792,30]
[354538614,1740561034066,-151.0,0.00079205,120]
[354538615,1740561034076,-461.79,0.000793,60]
[354538616,1740561034089,-151.0,0.000795,39]
[354538617,1740561034099,-913.0,0.0008,120]
[354538618,1740561034109,-500.0,0.00080381,15]
[354538619,1740561034119,-500.0,0.00080381,15]
[354538620,1740561034129,-556.61047823,0.00080381,15]
[354538621,1740561034139,-500.0,0.00080381,15]
[354538622,1740561034149,-151.0,0.00080521,120]
[354538623,1740561034160,-500.0,0.00080986,15]
[354538624,1740561034169,-159.16673705,0.00080986,15]
[354538625,1740561034179,-505.17627205,0.00080986,15]
[354538626,1740561034189,-500.0,0.00080986,15]
[354538627,1740561034200,-151.0,0.000816,36]
[354538628,1740561034210,-151.0,0.00081836,120]